[Event "Titled Tuesday Blitz June 20 Early 2023"]
[White "Tokhirjonova, Gulrukhbegim"]
[Black "Gurel, Ediz"]
[WhiteFideId "14203626"]
[BlackFideId "44507356"]
[WhiteElo "2265"]
[BlackElo "2352"]
[Result "0-1"]
[Round "1"]
[TimeControl "180+2"]
[Date "2023.06.20"]
[WhiteClock "0:00:04"]
[BlackClock "0:00:04"]
[Board "28"]

1. e4 {[%clk 0:02:58]}  Nf6 {[%clk 0:02:56]} 2. e5 {[%clk 0:02:58]}  Nd5 {[%clk 0:02:57]} 3. Nf3 {[%clk 0:02:57]}  d6 {[%clk 0:02:57]} 4. d4 {[%clk 0:02:57]}  g6 {[%clk 0:02:58]} 5. Be2 {[%clk 0:02:57]}  Bg7 {[%clk 0:02:58]} 6. O-O {[%clk 0:02:57]}  O-O {[%clk 0:02:58]} 7. h3 {[%clk 0:02:57]}  Nc6 {[%clk 0:02:57]} 8. c4 {[%clk 0:02:57]}  Nb6 {[%clk 0:02:57]} 9. exd6 {[%clk 0:02:56]}  cxd6 {[%clk 0:02:58]} 10. Be3 {[%clk 0:02:54]}  Bf5 {[%clk 0:02:57]} 11. Nc3 {[%clk 0:02:52]}  Rc8 {[%clk 0:02:57]} 12. b3 {[%clk 0:02:51]}  e5 {[%clk 0:02:53]} 13. d5 {[%clk 0:02:49]}  Ne7 {[%clk 0:02:48]} 14. Rc1 {[%clk 0:02:48]}  h6 {[%clk 0:02:45]} 15. Qd2 {[%clk 0:02:45]}  Kh7 {[%clk 0:02:46]} 16. Rfd1 {[%clk 0:02:45]}  Bd7 {[%clk 0:02:32]} 17. a4 {[%clk 0:02:43]}  f5 {[%clk 0:02:15]} 18. a5 {[%clk 0:02:04]}  f4 {[%clk 0:02:15]} 19. Bxb6 {[%clk 0:02:04]}  axb6 {[%clk 0:02:15]} 20. axb6 {[%clk 0:02:03]}  Qxb6 {[%clk 0:02:15]} 21. Rb1 {[%clk 0:01:51]}  Nf5 {[%clk 0:01:56]} 22. Bd3 {[%clk 0:01:50]}  Ra8 {[%clk 0:01:49]} 23. Ne4 {[%clk 0:01:45]}  Ra3 {[%clk 0:01:49]} 24. b4 {[%clk 0:01:43]}  Rfa8 {[%clk 0:01:17]} 25. c5 {[%clk 0:01:43]}  Qc7 {[%clk 0:01:12]} 26. Rdc1 {[%clk 0:01:28]}  Ra2 {[%clk 0:01:10]} 27. Qd1 {[%clk 0:01:25]}  Ba4 {[%clk 0:01:05]} 28. Qe1 {[%clk 0:01:14]}  Qe7 {[%clk 0:01:02]} 29. b5 {[%clk 0:01:09]}  dxc5 {[%clk 0:00:57]} 30. Nxc5 {[%clk 0:01:06]}  Qd6 {[%clk 0:00:35]} 31. Ne6 {[%clk 0:01:05]}  Bf6 {[%clk 0:00:22]} 32. Rc7+ {[%clk 0:00:48]}  Kh8 {[%clk 0:00:22]} 33. Rbc1 {[%clk 0:00:47]}  Re8 {[%clk 0:00:18]} 34. Be4 {[%clk 0:00:40]}  Bxb5 {[%clk 0:00:16]} 35. Rxb7 {[%clk 0:00:37]}  Ba6 {[%clk 0:00:14]} 36. Ra7 {[%clk 0:00:36]}  Re2 {[%clk 0:00:14]} 37. Qa5 {[%clk 0:00:31]}  Bc8 {[%clk 0:00:10]} 38. Bd3 {[%clk 0:00:15]}  Rb2 {[%clk 0:00:06]} 39. Nc7 {[%clk 0:00:13]}  Rf8 {[%clk 0:00:04]} 40. Be4 {[%clk 0:00:13]}  h5 {[%clk 0:00:02]} 41. Nb5 {[%clk 0:00:13]}  Qb8 {[%clk 0:00:01]} 42. Nc7 {[%clk 0:00:08]}  Rb6 {[%clk 0:00:01]} 43. Ra8 {[%clk 0:00:08]}  Qb7 {[%clk 0:00:01]} 44. Ra7 {[%clk 0:00:09]}  Qb8 {[%clk 0:00:02]} 45. Ra8 {[%clk 0:00:07]}  Qb7 {[%clk 0:00:02]} 46. Nd2 {[%clk 0:00:07]}  Nd6 {[%clk 0:00:02]} 47. Bf3 {[%clk 0:00:07]}  Rb2 {[%clk 0:00:02]} 48. Ne4 {[%clk 0:00:07]}  Nxe4 {[%clk 0:00:03]} 49. Bxe4 {[%clk 0:00:07]}  Qb6 {[%clk 0:00:02]} 50. Qxb6 {[%clk 0:00:07]}  Rxb6 {[%clk 0:00:03]} 51. Bxg6 {[%clk 0:00:07]}  Kg7 {[%clk 0:00:03]} 52. Bxh5 {[%clk 0:00:07]}  Bd7 {[%clk 0:00:02]} 53. Rxf8 {[%clk 0:00:06]}  Kxf8 {[%clk 0:00:03]} 54. Bg4 {[%clk 0:00:05]}  Ba4 {[%clk 0:00:01]} 55. Ne6+ {[%clk 0:00:05]}  Ke7 {[%clk 0:00:02]} 56. Rc7+ {[%clk 0:00:06]}  Kd6 {[%clk 0:00:02]} 57. Rf7 {[%clk 0:00:06]}  Bh4 {[%clk 0:00:02]} 58. g3 {[%clk 0:00:06]}  fxg3 {[%clk 0:00:02]} 59. fxg3 {[%clk 0:00:06]}  Bxg3 {[%clk 0:00:02]} 60. Kg2 {[%clk 0:00:07]}  Bh4 {[%clk 0:00:03]} 61. Rh7 {[%clk 0:00:07]}  Be7 {[%clk 0:00:03]} 62. Ng7 {[%clk 0:00:06]}  Rb2+ {[%clk 0:00:03]} 63. Kg3 {[%clk 0:00:05]}  Bg5 {[%clk 0:00:04]} 64. Nf5+ {[%clk 0:00:05]}  Kxd5 {[%clk 0:00:04]} 65. Bf3+ {[%clk 0:00:05]}  Kc5 {[%clk 0:00:04]} 66. Ne7 {[%clk 0:00:05]}  Bf4+ {[%clk 0:00:04]} 67. Kg4 {[%clk 0:00:05]}  Bd7+ {[%clk 0:00:04]} 68. Kh5 {[%clk 0:00:05]}  Rb3 {[%clk 0:00:03]} 69. Bg4 {[%clk 0:00:05]}  Be8+ {[%clk 0:00:04]} 70. Ng6 {[%clk 0:00:05]}  Rb6 {[%clk 0:00:03]} 71. Re7 {[%clk 0:00:05]}  Bxg6+ {[%clk 0:00:03]} 72. Kh4 {[%clk 0:00:06]}  Rd6 {[%clk 0:00:03]} 73. Rc7+ {[%clk 0:00:04]}  Kb6 {[%clk 0:00:03]} 74. Rg7 {[%clk 0:00:04]}  e4 {[%clk 0:00:04]} 75. Re7 {[%clk 0:00:04]}  e3 {[%clk 0:00:04]} 76. Bh5 {[%clk 0:00:04]}  Bf5 {[%clk 0:00:02]} 77. Rf7 {[%clk 0:00:04]}  Rd5 {[%clk 0:00:02]} 78. Bg4 {[%clk 0:00:04]}  Bxg4 {[%clk 0:00:02]} 79. Kxg4 {[%clk 0:00:05]}  e2 {[%clk 0:00:02]} 80. Re7 {[%clk 0:00:05]}  Re5 {[%clk 0:00:03]} 81. Rxe5 {[%clk 0:00:04]}  Bxe5 {[%clk 0:00:04]} 0-1


[Site "https://www.chess.com"]

[Event "Titled Tuesday Blitz June 20 Early 2023"]
[White "Hakobyan, Aram"]
[Black "Devaev, Alexander"]
[WhiteFideId "13306677"]
[BlackFideId "4169395"]
[WhiteElo "2584"]
[BlackElo "2172"]
[Result "1-0"]
[Round "1"]
[TimeControl "180+2"]
[Date "2023.06.20"]
[WhiteClock "0:00:56"]
[BlackClock "0:00:30"]
[Board "29"]

1. d4 {[%clk 0:03:00]}  Nf6 {[%clk 0:02:59]} 2. c4 {[%clk 0:03:01]}  e6 {[%clk 0:02:59]} 3. Nc3 {[%clk 0:03:01]}  Bb4 {[%clk 0:02:59]} 4. e3 {[%clk 0:03:01]}  c5 {[%clk 0:03:00]} 5. a3 {[%clk 0:03:01]}  Bxc3+ {[%clk 0:02:59]} 6. bxc3 {[%clk 0:03:02]}  Nc6 {[%clk 0:03:00]} 7. Ne2 {[%clk 0:03:01]}  d6 {[%clk 0:03:00]} 8. Ng3 {[%clk 0:03:01]}  e5 {[%clk 0:03:00]} 9. d5 {[%clk 0:03:00]}  Na5 {[%clk 0:02:56]} 10. e4 {[%clk 0:02:59]}  b6 {[%clk 0:02:56]} 11. Bd3 {[%clk 0:02:57]}  Ba6 {[%clk 0:02:57]} 12. O-O {[%clk 0:02:57]}  Qd7 {[%clk 0:02:50]} 13. Nf5 {[%clk 0:02:43]}  g6 {[%clk 0:02:26]} 14. Ne3 {[%clk 0:02:20]}  O-O-O {[%clk 0:02:21]} 15. f3 {[%clk 0:01:48]}  Rde8 {[%clk 0:02:11]} 16. Bd2 {[%clk 0:01:46]}  Kb8 {[%clk 0:02:09]} 17. Be1 {[%clk 0:01:43]}  h5 {[%clk 0:02:02]} 18. Bh4 {[%clk 0:01:39]}  Nh7 {[%clk 0:02:03]} 19. Qe2 {[%clk 0:01:37]}  Qa4 {[%clk 0:01:58]} 20. Rfb1 {[%clk 0:01:35]}  f6 {[%clk 0:01:54]} 21. Bc2 {[%clk 0:01:35]}  Qd7 {[%clk 0:01:52]} 22. Qd1 {[%clk 0:01:35]}  Ref8 {[%clk 0:01:45]} 23. Ba4 {[%clk 0:01:35]}  Qe7 {[%clk 0:01:42]} 24. Bb5 {[%clk 0:01:35]}  Bc8 {[%clk 0:01:42]} 25. Qa4 {[%clk 0:01:25]}  Kc7 {[%clk 0:01:28]} 26. Bc6 {[%clk 0:01:21]}  Bd7 {[%clk 0:01:20]} 27. Rb5 {[%clk 0:01:10]}  Bxc6 {[%clk 0:00:56]} 28. dxc6 {[%clk 0:01:10]}  Kd8 {[%clk 0:00:34]} 29. Nd5 {[%clk 0:01:06]}  Qf7 {[%clk 0:00:35]} 30. Rxa5 {[%clk 0:01:05]}  bxa5 {[%clk 0:00:35]} 31. Qxa5+ {[%clk 0:00:58]}  Ke8 {[%clk 0:00:30]} 32. Rb1 {[%clk 0:00:56]} 1-0


[Site "https://www.chess.com"]

[Event "Titled Tuesday Blitz June 20 Early 2023"]
[White "angelgab3"]
[Black "Kozak, Adam"]
[BlackFideId "753246"]
[WhiteElo "2507"]
[BlackElo "2469"]
[Result "0-1"]
[Round "1"]
[TimeControl "180+2"]
[Date "2023.06.20"]
[WhiteClock "0:00:44"]
[BlackClock "0:00:14"]
[Board "30"]

1. e4 {[%clk 0:03:00]}  e5 {[%clk 0:02:50]} 2. Nf3 {[%clk 0:03:01]}  Nc6 {[%clk 0:02:50]} 3. Bb5 {[%clk 0:03:01]}  a6 {[%clk 0:02:49]} 4. Ba4 {[%clk 0:03:02]}  Nf6 {[%clk 0:02:48]} 5. O-O {[%clk 0:03:02]}  Be7 {[%clk 0:02:48]} 6. Re1 {[%clk 0:03:01]}  b5 {[%clk 0:02:47]} 7. Bb3 {[%clk 0:03:01]}  d6 {[%clk 0:02:47]} 8. c3 {[%clk 0:03:01]}  O-O {[%clk 0:02:47]} 9. h3 {[%clk 0:03:01]}  Na5 {[%clk 0:02:47]} 10. Bc2 {[%clk 0:03:01]}  c5 {[%clk 0:02:47]} 11. d4 {[%clk 0:03:02]}  Qc7 {[%clk 0:02:48]} 12. Nbd2 {[%clk 0:02:59]}  Nc6 {[%clk 0:02:47]} 13. d5 {[%clk 0:02:53]}  Nd8 {[%clk 0:02:47]} 14. Nf1 {[%clk 0:02:54]}  Ne8 {[%clk 0:02:47]} 15. Ng3 {[%clk 0:02:50]}  g6 {[%clk 0:02:47]} 16. a4 {[%clk 0:02:49]}  Rb8 {[%clk 0:02:47]} 17. axb5 {[%clk 0:02:42]}  axb5 {[%clk 0:02:48]} 18. Ng5 {[%clk 0:02:31]}  f6 {[%clk 0:02:44]} 19. Nf3 {[%clk 0:02:29]}  Nf7 {[%clk 0:02:44]} 20. Rf1 {[%clk 0:02:28]}  Ng7 {[%clk 0:02:43]} 21. Nh2 {[%clk 0:02:27]}  Bd7 {[%clk 0:02:33]} 22. Qf3 {[%clk 0:02:23]}  Kh8 {[%clk 0:01:52]} 23. Bd2 {[%clk 0:02:11]}  Ng5 {[%clk 0:00:59]} 24. Qe2 {[%clk 0:02:09]}  Nf7 {[%clk 0:00:59]} 25. Ra2 {[%clk 0:02:08]}  Ra8 {[%clk 0:00:57]} 26. Rfa1 {[%clk 0:02:07]}  Rxa2 {[%clk 0:00:57]} 27. Rxa2 {[%clk 0:02:08]}  f5 {[%clk 0:00:43]} 28. Qd1 {[%clk 0:01:47]}  f4 {[%clk 0:00:42]} 29. Ngf1 {[%clk 0:01:45]}  h5 {[%clk 0:00:41]} 30. Qa1 {[%clk 0:01:45]}  Rb8 {[%clk 0:00:24]} 31. Bd1 {[%clk 0:01:39]}  Qc8 {[%clk 0:00:21]} 32. Ra7 {[%clk 0:01:35]}  Bd8 {[%clk 0:00:20]} 33. Qa6 {[%clk 0:01:18]}  Qxa6 {[%clk 0:00:20]} 34. Rxa6 {[%clk 0:01:19]}  Bb6 {[%clk 0:00:20]} 35. g3 {[%clk 0:01:10]}  Bc8 {[%clk 0:00:16]} 36. Ra1 {[%clk 0:01:09]}  fxg3 {[%clk 0:00:16]} 37. h4 {[%clk 0:00:57]}  gxh2+ {[%clk 0:00:16]} 38. Nxh2 {[%clk 0:00:58]}  c4 {[%clk 0:00:15]} 39. Kg2 {[%clk 0:00:55]}  Kg8 {[%clk 0:00:15]} 40. Nf3 {[%clk 0:00:55]}  Bg4 {[%clk 0:00:16]} 41. Ra6 {[%clk 0:00:54]}  Bc8 {[%clk 0:00:15]} 42. Ra1 {[%clk 0:00:53]}  Ne8 {[%clk 0:00:16]} 43. Rc1 {[%clk 0:00:53]}  Nf6 {[%clk 0:00:16]} 44. b3 {[%clk 0:00:54]}  Nxe4 {[%clk 0:00:16]} 45. bxc4 {[%clk 0:00:55]}  bxc4 {[%clk 0:00:16]} 46. Be1 {[%clk 0:00:55]}  Bg4 {[%clk 0:00:16]} 47. Be2 {[%clk 0:00:56]}  Rc8 {[%clk 0:00:15]} 48. Rb1 {[%clk 0:00:55]}  Bc5 {[%clk 0:00:15]} 49. Bxc4 {[%clk 0:00:54]}  Bxf2 {[%clk 0:00:15]} 50. Ba6 {[%clk 0:00:55]}  Ra8 {[%clk 0:00:14]} 51. Bb7 {[%clk 0:00:44]}  Ra2 {[%clk 0:00:14]} 0-1


[Site "https://www.chess.com"]

[Event "Titled Tuesday Blitz June 20 Early 2023"]
[White "Aravindh, Chithambaram VR."]
[Black "Kochiev, Ivan"]
[WhiteFideId "5072786"]
[BlackFideId "2917890"]
[WhiteElo "2596"]
[BlackElo "2287"]
[Result "1-0"]
[Round "1"]
[TimeControl "180+2"]
[Date "2023.06.20"]
[WhiteClock "0:00:02"]
[BlackClock "0:00:00"]
[Board "33"]

1. c4 {[%clk 0:02:57]}  Nf6 {[%clk 0:02:54]} 2. Nf3 {[%clk 0:02:55]}  e6 {[%clk 0:02:54]} 3. b3 {[%clk 0:02:53]}  Be7 {[%clk 0:02:53]} 4. Bb2 {[%clk 0:02:53]}  O-O {[%clk 0:02:53]} 5. e3 {[%clk 0:02:52]}  b6 {[%clk 0:02:54]} 6. d4 {[%clk 0:02:51]}  Bb7 {[%clk 0:02:54]} 7. Bd3 {[%clk 0:02:52]}  d5 {[%clk 0:02:53]} 8. Nbd2 {[%clk 0:02:52]}  c5 {[%clk 0:02:50]} 9. O-O {[%clk 0:02:52]}  Nc6 {[%clk 0:02:46]} 10. Rc1 {[%clk 0:02:51]}  cxd4 {[%clk 0:02:43]} 11. Nxd4 {[%clk 0:02:51]}  Rc8 {[%clk 0:02:43]} 12. cxd5 {[%clk 0:02:48]}  Nxd5 {[%clk 0:02:34]} 13. Nxc6 {[%clk 0:02:32]}  Rxc6 {[%clk 0:02:30]} 14. Rxc6 {[%clk 0:02:29]}  Bxc6 {[%clk 0:02:31]} 15. Bxh7+ {[%clk 0:02:22]}  Kxh7 {[%clk 0:02:20]} 16. Qc2+ {[%clk 0:02:22]}  Kg8 {[%clk 0:02:07]} 17. Qxc6 {[%clk 0:02:21]}  Nxe3 {[%clk 0:02:07]} 18. Qc3 {[%clk 0:02:07]}  Bf6 {[%clk 0:01:57]} 19. Qxe3 {[%clk 0:02:06]}  Bxb2 {[%clk 0:01:58]} 20. Nf3 {[%clk 0:02:05]}  Qf6 {[%clk 0:01:49]} 21. Rd1 {[%clk 0:01:58]}  Rd8 {[%clk 0:01:33]} 22. Rd2 {[%clk 0:01:53]}  Rxd2 {[%clk 0:01:12]} 23. Qxd2 {[%clk 0:01:53]}  Ba3 {[%clk 0:01:07]} 24. h4 {[%clk 0:01:50]}  Bc5 {[%clk 0:00:56]} 25. Qd7 {[%clk 0:01:29]}  Qa1+ {[%clk 0:00:26]} 26. Kh2 {[%clk 0:01:28]}  a5 {[%clk 0:00:23]} 27. Ng5 {[%clk 0:00:52]}  Qe5+ {[%clk 0:00:18]} 28. g3 {[%clk 0:00:45]}  Qf5 {[%clk 0:00:18]} 29. Qd8+ {[%clk 0:00:40]}  Bf8 {[%clk 0:00:18]} 30. Kg2 {[%clk 0:00:38]}  f6 {[%clk 0:00:16]} 31. Nf3 {[%clk 0:00:33]}  Qc2 {[%clk 0:00:11]} 32. Qd7 {[%clk 0:00:13]}  Qe4 {[%clk 0:00:06]} 33. Qd4 {[%clk 0:00:06]}  Qc6 {[%clk 0:00:05]} 34. Qd3 {[%clk 0:00:04]}  Bc5 {[%clk 0:00:05]} 35. Kg1 {[%clk 0:00:04]}  Kf7 {[%clk 0:00:03]} 36. Qe2 {[%clk 0:00:03]}  Qd5 {[%clk 0:00:03]} 37. Kh2 {[%clk 0:00:04]}  a4 {[%clk 0:00:02]} 38. bxa4 {[%clk 0:00:04]}  Qc6 {[%clk 0:00:03]} 39. Qd3 {[%clk 0:00:03]}  Bxf2 {[%clk 0:00:03]} 40. Kg2 {[%clk 0:00:02]}  Bc5 {[%clk 0:00:03]} 41. Qb3 {[%clk 0:00:03]}  Qd6 {[%clk 0:00:02]} 42. Qc4 {[%clk 0:00:03]}  Qd1 {[%clk 0:00:02]} 43. a5 {[%clk 0:00:03]}  Qb1 {[%clk 0:00:01]} 44. a6 {[%clk 0:00:03]}  Be3 {[%clk 0:00:00]} 45. a7 {[%clk 0:00:02]} 1-0


[Site "https://www.chess.com"]

[Event "Titled Tuesday Blitz June 20 Early 2023"]
[White "Zheenbekov, Nurgazy"]
[Black "Nogerbek, Kazybek"]
[WhiteFideId "13800485"]
[BlackFideId "13710427"]
[WhiteElo "1975"]
[BlackElo "2498"]
[Result "0-1"]
[Round "1"]
[TimeControl "180+2"]
[Date "2023.06.20"]
[WhiteClock "0:00:00"]
[BlackClock "0:00:05"]
[Board "34"]

1. e4 {[%clk 0:02:59]}  e6 {[%clk 0:02:55]} 2. d4 {[%clk 0:02:58]}  d5 {[%clk 0:02:55]} 3. Nc3 {[%clk 0:02:57]}  Bb4 {[%clk 0:02:54]} 4. Bd3 {[%clk 0:02:57]}  dxe4 {[%clk 0:02:50]} 5. Bxe4 {[%clk 0:02:57]}  Nf6 {[%clk 0:02:51]} 6. Bd3 {[%clk 0:02:56]}  c5 {[%clk 0:02:48]} 7. Nf3 {[%clk 0:02:56]}  O-O {[%clk 0:02:47]} 8. O-O {[%clk 0:02:56]}  Bxc3 {[%clk 0:02:42]} 9. bxc3 {[%clk 0:02:55]}  b6 {[%clk 0:02:43]} 10. Bg5 {[%clk 0:02:44]}  Bb7 {[%clk 0:02:41]} 11. Re1 {[%clk 0:02:44]}  h6 {[%clk 0:02:40]} 12. Bh4 {[%clk 0:02:43]}  Nbd7 {[%clk 0:02:40]} 13. Ne5 {[%clk 0:02:38]}  Qc8 {[%clk 0:02:25]} 14. Qe2 {[%clk 0:02:36]}  Nd5 {[%clk 0:02:10]} 15. Qd2 {[%clk 0:02:21]}  cxd4 {[%clk 0:01:56]} 16. cxd4 {[%clk 0:01:56]}  Nxe5 {[%clk 0:01:55]} 17. dxe5 {[%clk 0:01:38]}  Qc5 {[%clk 0:01:28]} 18. Be4 {[%clk 0:01:30]}  Rac8 {[%clk 0:01:27]} 19. h3 {[%clk 0:01:24]}  Rc7 {[%clk 0:01:23]} 20. c4 {[%clk 0:01:20]}  Nb4 {[%clk 0:01:16]} 21. Rac1 {[%clk 0:01:03]}  Bxe4 {[%clk 0:01:11]} 22. Rxe4 {[%clk 0:01:03]}  Nc6 {[%clk 0:01:08]} 23. Bf6 {[%clk 0:00:56]}  Ne7 {[%clk 0:00:36]} 24. Rg4 {[%clk 0:00:43]}  Ng6 {[%clk 0:00:36]} 25. h4 {[%clk 0:00:33]}  gxf6 {[%clk 0:00:24]} 26. h5 {[%clk 0:00:33]}  f5 {[%clk 0:00:16]} 27. Rg3 {[%clk 0:00:32]}  Kg7 {[%clk 0:00:15]} 28. Qf4 {[%clk 0:00:20]}  Rd8 {[%clk 0:00:09]} 29. Re1 {[%clk 0:00:19]}  Rd4 {[%clk 0:00:06]} 30. Qc1 {[%clk 0:00:11]}  Rcd7 {[%clk 0:00:04]} 31. hxg6 {[%clk 0:00:10]}  fxg6 {[%clk 0:00:05]} 32. Rh3 {[%clk 0:00:00]}  g5 {[%clk 0:00:05]} 0-1


[Site "https://www.chess.com"]

[Event "Titled Tuesday Blitz June 20 Early 2023"]
[White "Sjugirov, Sanan"]
[Black "Rodchenkov, Sergey D."]
[WhiteFideId "4189302"]
[BlackFideId "4168712"]
[WhiteElo "2569"]
[BlackElo "2277"]
[Result "1-0"]
[Round "1"]
[TimeControl "180+2"]
[Date "2023.06.20"]
[WhiteClock "0:00:14"]
[BlackClock "0:00:21"]
[Board "37"]

1. e4 {[%clk 0:02:59]}  c5 {[%clk 0:02:57]} 2. Nf3 {[%clk 0:02:59]}  d6 {[%clk 0:02:56]} 3. d4 {[%clk 0:02:57]}  cxd4 {[%clk 0:02:57]} 4. Nxd4 {[%clk 0:02:58]}  Nf6 {[%clk 0:02:58]} 5. Nc3 {[%clk 0:02:58]}  a6 {[%clk 0:02:58]} 6. Be3 {[%clk 0:02:56]}  e5 {[%clk 0:02:58]} 7. Nf3 {[%clk 0:02:57]}  Be7 {[%clk 0:02:56]} 8. Bc4 {[%clk 0:02:56]}  O-O {[%clk 0:02:56]} 9. O-O {[%clk 0:02:56]}  Nbd7 {[%clk 0:02:54]} 10. a4 {[%clk 0:02:51]}  b6 {[%clk 0:02:54]} 11. Qe2 {[%clk 0:02:27]}  Bb7 {[%clk 0:02:51]} 12. Nd2 {[%clk 0:02:27]}  Qc7 {[%clk 0:02:40]} 13. Rfd1 {[%clk 0:02:24]}  Rfc8 {[%clk 0:02:40]} 14. Ba2 {[%clk 0:02:21]}  Nf8 {[%clk 0:02:26]} 15. Nc4 {[%clk 0:02:08]}  N8d7 {[%clk 0:02:16]} 16. f3 {[%clk 0:02:00]}  Rd8 {[%clk 0:02:07]} 17. Bf2 {[%clk 0:01:45]}  Nc5 {[%clk 0:02:02]} 18. Ne3 {[%clk 0:01:34]}  Ne6 {[%clk 0:01:51]} 19. Nf5 {[%clk 0:01:24]}  Bf8 {[%clk 0:01:45]} 20. Bh4 {[%clk 0:01:22]}  Kh8 {[%clk 0:01:23]} 21. Kh1 {[%clk 0:01:21]}  Rdc8 {[%clk 0:01:21]} 22. Bxf6 {[%clk 0:01:18]}  gxf6 {[%clk 0:01:22]} 23. Qf2 {[%clk 0:01:11]}  Ng7 {[%clk 0:01:17]} 24. Ne3 {[%clk 0:01:03]}  Qc5 {[%clk 0:01:06]} 25. Bd5 {[%clk 0:00:59]}  Rab8 {[%clk 0:01:00]} 26. Bxb7 {[%clk 0:00:54]}  Rxb7 {[%clk 0:01:01]} 27. Ncd5 {[%clk 0:00:54]}  f5 {[%clk 0:00:55]} 28. b4 {[%clk 0:00:53]}  Qc6 {[%clk 0:00:47]} 29. exf5 {[%clk 0:00:52]}  Ne8 {[%clk 0:00:28]} 30. c4 {[%clk 0:00:45]}  f6 {[%clk 0:00:28]} 31. Qh4 {[%clk 0:00:39]}  Bg7 {[%clk 0:00:29]} 32. Qe4 {[%clk 0:00:32]}  Qd7 {[%clk 0:00:29]} 33. Ra3 {[%clk 0:00:27]}  Nc7 {[%clk 0:00:26]} 34. h3 {[%clk 0:00:23]}  Qc6 {[%clk 0:00:21]} 35. Nxf6 {[%clk 0:00:13]}  Qxe4 {[%clk 0:00:20]} 36. Nxe4 {[%clk 0:00:14]}  Ne8 {[%clk 0:00:20]} 37. Nxd6 {[%clk 0:00:13]}  Nxd6 {[%clk 0:00:21]} 38. Rxd6 {[%clk 0:00:14]}  Bh6 {[%clk 0:00:21]} 39. Rxh6 {[%clk 0:00:14]}  Kg7 {[%clk 0:00:21]} 40. Rd6 {[%clk 0:00:14]} 1-0


[Site "https://www.chess.com"]

[Event "Titled Tuesday Blitz June 20 Early 2023"]
[White "Ibarra Jerez, Jose Carlos"]
[Black "Aggelis, Nikolaos"]
[WhiteFideId "2226332"]
[BlackFideId "4213220"]
[WhiteElo "2631"]
[BlackElo "2189"]
[Result "1-0"]
[Round "1"]
[TimeControl "180+2"]
[Date "2023.06.20"]
[WhiteClock "0:01:59"]
[BlackClock "0:00:00"]
[Board "41"]

1. e4 {[%clk 0:02:59]}  c6 {[%clk 0:02:59]} 2. Nf3 {[%clk 0:02:59]}  d5 {[%clk 0:02:59]} 3. d3 {[%clk 0:03:00]}  dxe4 {[%clk 0:02:58]} 4. dxe4 {[%clk 0:03:00]}  Qxd1+ {[%clk 0:02:58]} 5. Kxd1 {[%clk 0:03:01]}  Bg4 {[%clk 0:02:54]} 6. Be2 {[%clk 0:03:00]}  Nd7 {[%clk 0:02:49]} 7. Ne1 {[%clk 0:03:00]}  Bxe2+ {[%clk 0:02:48]} 8. Kxe2 {[%clk 0:03:00]}  e5 {[%clk 0:02:48]} 9. Nd3 {[%clk 0:03:00]}  Nc5 {[%clk 0:02:27]} 10. Nxe5 {[%clk 0:02:59]}  Nxe4 {[%clk 0:02:22]} 11. Re1 {[%clk 0:03:00]}  Nd6 {[%clk 0:02:07]} 12. Kf1 {[%clk 0:02:58]}  O-O-O {[%clk 0:02:06]} 13. Nc3 {[%clk 0:02:55]}  f6 {[%clk 0:01:52]} 14. Nd3 {[%clk 0:02:55]}  Ne7 {[%clk 0:01:41]} 15. Nc5 {[%clk 0:02:47]}  Nd5 {[%clk 0:01:32]} 16. Nxd5 {[%clk 0:02:39]}  cxd5 {[%clk 0:01:33]} 17. Bf4 {[%clk 0:02:38]}  Nc4 {[%clk 0:01:20]} 18. Ne6 {[%clk 0:02:37]}  Rd7 {[%clk 0:01:19]} 19. b3 {[%clk 0:02:29]}  Nb6 {[%clk 0:01:10]} 20. Be3 {[%clk 0:02:21]}  Bb4 {[%clk 0:01:05]} 21. c3 {[%clk 0:02:21]}  Bd6 {[%clk 0:00:57]} 22. a4 {[%clk 0:02:18]}  Re8 {[%clk 0:00:48]} 23. Nd4 {[%clk 0:02:12]}  Kb8 {[%clk 0:00:33]} 24. Nb5 {[%clk 0:02:08]}  Be5 {[%clk 0:00:20]} 25. Bxb6 {[%clk 0:02:06]}  axb6 {[%clk 0:00:18]} 26. f4 {[%clk 0:02:06]}  Rde7 {[%clk 0:00:05]} 27. fxe5 {[%clk 0:02:05]}  fxe5 {[%clk 0:00:06]} 28. Rad1 {[%clk 0:02:04]}  Rd7 {[%clk 0:00:04]} 29. Re3 {[%clk 0:02:02]}  g5 {[%clk 0:00:03]} 30. Rde1 {[%clk 0:02:02]}  Rde7 {[%clk 0:00:00]} 31. Nd6 {[%clk 0:01:59]} 1-0


[Site "https://www.chess.com"]